Cogmind - Beta 16.1 @@@ ROGUE MODE // 2026.06.18 @ 19:09:51 Player: Lolterzard Result: Destroyed by H-61 Shepherd with Heavy Assault Cannon Performance ------------- Evolutions (2) 1000 Regions Visited (4) 800 Robots Destroyed (95) 475 Value Destroyed (2660) 2660 Prototype IDs (3) 60 Alien Tech Used (0) 0 Bonus (88) 88 TOTAL SCORE: 5083 Bonus ------- High Alert Combat Kills 88 Cogmind --------- Core Integrity 0/550 Matter 20/300 Energy 62/290 System Corruption 12% Temperature Cool (0) Movement Core (1550) Ox30 Location -8/Materials Parts ------- > --- POWER (1) -------- Improved Deuterium Engine > --- PROPULSION (6) --- Light Treads > --- UTILITY (2) ------ Huge Storage Unit Core Shielding > --- WEAPON (2) ------- Light Assault Rifle > --- INVENTORY (25) --- Improved Deuterium Engine Improved Deuterium Engine Improved Heat Sink High-capacity Storage Unit Core Analyzer Core Analyzer Core Shielding Core Shielding Heavy Armor Plating High-powered Tractor Beam Improved Datajack Peak State ------------ > --- POWER ------------ Nuclear Core > --- PROPULSION ------- Improved Treads Hover Unit Gravmag System Gravmag System Gravmag System Gravmag System > --- UTILITY ---------- Huge Storage Unit Improved Weapon Shielding > --- WEAPON ----------- Heavy Assault Rifle Flak Cannon > --- INVENTORY -------- Improved Deuterium Engine Improved Deuterium Engine Improved Deuterium Engine Hover Unit Improved Heat Sink Improved Heat Sink High-capacity Storage Unit Core Analyzer Core Analyzer Core Shielding Heavy Armor Plating High-powered Tractor Beam Light Assault Rifle Missile Launcher Missile Launcher Missile Launcher Missile Launcher Datajack [Rating: 36] Favorites ----------- Power Nuclear Core Engine Ion Engine Power Core Nuclear Core Propulsion Light Treads Treads Light Treads Wheel Compact Wheel Hover Unit Gravmag System Flight Unit Improved Flight Unit Utility Huge Storage Unit Device Seismic Detector Storage Huge Storage Unit Protection Improved Light Armor Plating Weapon Medium Laser Energy Gun Medium Laser Ballistic Gun Light Assault Rifle Ballistic Cannon Flak Cannon Launcher Missile Launcher Impact Weapon Powered Hammer Special Melee Weapon Datajack Build | -11 -10 -10 -10 -8 ------- Run | Yrd Mat Min Sub Mat Slots Evolved 4 | . . . . 4 Power . | . . . . . Propulsion 4 | . . . . 4 Utility . | . . . . . Weapon . | . . . . . Parts Attached 64 | 7 7 3 3 44 Power 10 | 1 . 1 . 8 Engine 7 | 1 . 1 . 5 Core 3 | . . . . 3 Reactor . | . . . . . Propulsion 24 | 2 3 . 1 18 Treads 13 | 2 . . 1 10 Leg . | . . . . . Wheel 4 | . 2 . . 2 Hover 6 | . . . . 6 Flight 1 | . 1 . . . Utility 12 | 2 3 . 1 6 Device 2 | 1 . . . 1 Storage 4 | 1 3 . . . Processor . | . . . . . Hackware . | . . . . . Protection 6 | . . . 1 5 Artifact . | . . . . . Weapon 18 | 2 1 2 1 12 Energy Gun 3 | 2 1 . . . Energy Cannon . | . . . . . Ballistic Gun 5 | . . 1 . 4 Ballistic Cannon 1 | . . . . 1 Launcher 7 | . . . 1 6 Special Weapon . | . . . . . Impact Weapon 1 | . . . . 1 Slashing Weapon . | . . . . . Piercing Weapon . | . . . . . Special Melee Weapon 1 | . . 1 . . Unidentified Prototypes 3 | . 1 . . 2 Corrupted Parts 1 | . . . . 1 System Corruption 4 | . . . . 4 Parts Lost 39 | . 1 1 2 35 Power 2 | . . . . 2 Propulsion 20 | . . . 1 19 Utility 7 | . . . 1 6 Weapon 10 | . 1 1 . 8 Highest Loss Streak 12 | . 1 1 2 12 To Critical Strikes . | . . . . . Average Backups 18 | 3 9 17 17 22 Power 2 | . 1 1 3 3 Propulsion 4 | 1 3 5 4 4 Utility 7 | . 2 7 7 9 Weapon 3 | . 1 1 2 4 Tool/Special . | . . . . . Unused Backups 17 | . . . . 17 Power 3 | . . . . 3 Propulsion . | . . . . . Utility 11 | . . . . 11 Weapon 1 | . . . . 1 Tool/Special 2 | . . . . 2 Average Slot Usage (%) 89 | . 100 98 98 84 Engine 7 | . 14 14 14 4 Core 2 | . . . . 4 Treads 23 | . 18 . 22 26 Wheel 5 | . 9 28 4 3 Hover 7 | . . . . 10 Device 3 | . 14 14 1 . Storage 10 | . 14 14 14 9 Protection 6 | . . . 11 8 Energy Gun 9 | . 28 23 10 1 Ballistic Gun 6 | . . 2 14 8 Ballistic Cannon 3 | . . . . 5 Launcher 1 | . . . 3 1 Peak Build Rating 36 | 7 10 13 15 36 Average Rating 18 | 5 7 9 14 24 On Entrance 8 | . 7 8 13 15 Avg Prop Armor Cover (%) 12 | 31 . . . 11 Naked Turns . | . . . . . Heaviest Build 102 | 15 90 95 98 102 Greatest Support 125 | 40 40 26 42 125 Greatest Overweight (x) 30 | 4 3 3 9 30 Average Overweight (x) 1 | . 1 3 2 1 Largest Inventory Capacity 25 | 8 25 25 25 25 Average Capacity 22 | 7 17 25 25 25 Most Carried 25 | 4 16 21 20 25 Average Carried 18 | 3 9 16 17 23 Final Capacity 25 | 8 25 25 25 25 Final Carried 20 | 4 16 20 17 12 Class Distribution -------------------- 78% | Mutant 21% | Scavenger-Mutant Dominant Class ---------------- Mutant | -10/Materials Mutant | -10/Mines Mutant | -10/Subcaves Mutant | -8/Materials Resources | -11 -10 -10 -10 -8 ----------- Run | Yrd Mat Min Sub Mat Matter Collected 2027 | 229 106 . 111 1581 Remotely . | . . . . . Salvage Created 2935 | 101 535 . 120 2179 Parts 139 | 5 23 . 6 105 Haulers Intercepted 7 | . 1 . . 6 Recyclers Shooed 3 | 1 1 . . 1 Parts Field Recycled . | . . . . . Retrieved Matter . | . . . . . Parts Self-Destructed 10 | . . . 10 . Prevented . | . . . . . Parts Restored . | . . . . . Kills | -11 -10 -10 -10 -8 ------- Run | Yrd Mat Min Sub Mat Combat Hostiles Destroyed 66 | . 9 . 5 52 Guns 40 | . 9 . 5 26 Cannons 16 | . . . . 16 AOE 7 | . . . . 7 Classes Destroyed 13 | 2 3 . 2 6 Worker 9 | . . . . 9 Builder 3 | . . . . 3 Tunneler 2 | 2 . . . . Hauler 7 | . 1 . . 6 Recycler 3 | 1 1 . . 1 Watcher 5 | . 1 . . 4 Swarmer 15 | . . . 3 12 Grunt 37 | . 9 . . 28 Brawler 1 | . . . . 1 Duelist 1 | . . . . 1 Sentry 8 | . . . . 8 Hunter 2 | . . . . 2 Subdweller 2 | . . . 2 . Best Kill Streak 8 | 2 2 . 3 8 Combat Bots Only 7 | . 2 . 3 7 Max Kills in Single Turn 3 | 1 1 . 2 3 Gunslinging 1 | . . . 1 . Exploded 3 | . . . . 3 Melee . | . . . . . Uniques/NPCs Destroyed . | . . . . . Combat | -11 -10 -10 -10 -8 -------- Run | Yrd Mat Min Sub Mat Hostile Shots Fired 415 | . 43 . 27 345 Missed 112 | . 9 . 6 97 Hits 303 | . 34 . 21 248 Melee 4 | . . . . 4 Projectile 299 | . 34 . 21 244 Critical Strikes 12 | . 1 . . 11 Damage Taken 4952 | . 424 38 229 4261 Core 745 | . 127 28 37 553 Absorbed by Shields . | . . . . . Redirected to Shielding 110 | . . . . 110 Core Remaining (%) 61 | 100 . . 23 . Volleys Fired 287 | 10 46 . 9 222 Largest 2 | 2 2 . 2 2 Hottest 100 | 100 100 . 75 75 Shots Fired 553 | 20 91 . 18 424 Gun 418 | 20 91 . 15 292 Cannon 110 | . . . . 110 Launcher 25 | . . . 3 22 Special . | . . . . . Kinetic 366 | . . . 9 357 Thermal 146 | 20 75 . 6 45 Explosive 25 | . . . 3 22 Electromagnetic 16 | . 16 . . . Robot Hit Streak 23 | 5 14 . 5 23 Robot Miss Streak 14 | 2 3 . 5 14 Penetration Max . | . . . . . Secondary Targets 5 | . . . 2 3 Max Gunslinging Chain 1 | . . . 1 1 Shots Hit Robots 392 | 10 64 . 10 308 Core Hits 228 | 4 28 . 5 191 Critical Kills 1 | . . . . 1 Critical Parts Destroyed 2 | . . . . 2 Critical Strikes 14 | 1 5 . . 8 Burn 11 | 1 5 . . 5 Destroy 1 | . . . . 1 Smash 2 | . . . . 2 Melee Attacks 19 | . . . . 19 Impact 19 | . . . . 19 Slashing . | . . . . . Piercing . | . . . . . Sneak Attacks 5 | . . . . 5 Combat Hostiles . | . . . . . Follow-up Attacks . | . . . . . Damage Inflicted 7200 | 125 819 . 227 6029 Guns 3438 | 125 813 . 172 2328 Cannons 1484 | . . . . 1484 Explosions 1322 | . . . 55 1267 Melee 870 | . . . . 870 Ramming 86 | . 6 . . 80 Kinetic 3524 | . . . 122 3402 Thermal 1252 | 125 667 . 50 410 Explosive 1322 | . . . 55 1267 Electromagnetic 146 | . 146 . . . Impact 870 | . . . . 870 Slashing . | . . . . . Piercing . | . . . . . Highest Corruption 12 | . . . . 12 Average Corruption 7 | . . . . 7 Corruption Purged . | . . . . . Corruption Blocked . | . . . . . Effects 85 | . . . . 85 Message Errors 14 | . . . . 14 Matter Fused 12 | . . . . 12 Heat Flow Errors 13 | . . . . 13 Energy Discharges 15 | . . . . 15 Parts Rejected 2 | . . . . 2 Data Loss (minor) 11 | . . . . 11 Data Loss (major) 4 | . . . . 4 Misfires 5 | . . . . 5 Alerts 2 | . . . . 2 Misdirections 1 | . . . . 1 Weapon Failures 6 | . . . . 6 Overload Shots . | . . . . . Overflow Damage 466 | . . . . 466 Projectiles 9 | . . . . 9 Explosions 78 | . . . . 78 Melee 379 | . . . . 379 Knockbacks 51 | . . . . 51 Impact 4 | . . . . 4 Kinetic 34 | . . . . 34 Secondary 13 | . . . . 13 Self-Inflicted Damage 276 | . . . 23 253 Shots 3 | . . . 1 2 Rammed 11 | . 4 . . 7 Targets Rammed 11 | . 4 . . 7 Kicked . | . . . . . Crushed . | . . . . . Highest Temperature 314 | 234 314 . . 292 Average Temperature 70 | 84 103 . . 55 Received Heat Transfer 1620 | . 261 . 18 1341 Effects 1 | . . . . 1 Energy Bleed 1 | . . . . 1 Siege Activations . | . . . . . Martial Activations . | . . . . . Shielding Activations . | . . . . . Robots Disrupted . | . . . . . Combat Hostiles . | . . . . . Robots Corrupted 8 | . . . . 8 Combat Hostiles 3 | . . . . 3 Parts Fried 14 | . 1 . . 13 Impact Corruptions 17 | . . . . 17 Robots Melted . | . . . . . Combat Hostiles . | . . . . . Parts Melted 8 | 1 3 . . 4 Heat Transferred 4514 | 444 2331 . 148 1591 Parts Sabotaged . | . . . . . Parts Stolen . | . . . . . Parts Stripped . | . . . . . Power Chain Reactions . | . . . . . Alert | -11 -10 -10 -10 -8 ------- Run | Yrd Mat Min Sub Mat Maximum Alert Level 2 | . . . . 2 Low Security (%) 67 | 100 100 100 . 53 Level 1 25 | . . . . 36 Level 2 6 | . . . . 10 Level 3 . | . . . . . Level 4 . | . . . . . Level 5 . | . . . . . High Security . | . . . . . Max Security . | . . . . . Sterilizations 1 | . . . . 1 Peak Influence 607 | 5 82 1 . 607 Initial 1 | . . 1 . . Average 145 | 1 17 . . 203 Influence Increases 1990 | 15 283 . 70 1622 Destroy 0b10 Robot/C 1280 | . 180 . 60 1040 Destroy 0b10 Robot/NC 145 | 15 15 . . 115 Destroy Leader 314 | . 54 . 10 250 Successful Hack 11 | . 4 . . 7 Disable Machine 45 | . . . . 45 Destroy Structure 90 | . . . . 90 Lose Combat Pursuer 105 | . 30 . . 75 Influence Decreases 1462 | 15 277 6 70 1094 Entered New Map 5 | . . 5 . . Time Decay 995 | 15 276 1 70 633 Lost Part 351 | . 1 . . 350 Purge Threat 111 | . . . . 111 Squads Dispatched 12 | . 2 . . 10 Investigation 7 | . 2 . . 5 Extermination . | . . . . . Reinforcement 3 | . . . . 3 Assault . | . . . . . Garrison 2 | . . . . 2 Intercept . | . . . . . Searches Triggered . | . . . . . Construction Impeded 1 | . . . . 1 Haulers Reinforced . | . . . . . Active Scanning Responses . | . . . . . Cargo Convoy Interrupts . | . . . . . Stealth | -11 -10 -10 -10 -8 --------- Run | Yrd Mat Min Sub Mat Distress Signals 7 | . 2 . . 5 Communications Jammed . | . . . . . Distress Signals . | . . . . . Times Spotted 94 | . 16 . 5 73 Peak Tracking Total 6 | . 3 . 3 6 Tactical Retreats 6 | . 2 . . 4 Traps | -11 -10 -10 -10 -8 ------- Run | Yrd Mat Min Sub Mat Traps Triggered 7 | . 2 1 . 4 Indirectly . | . . . . . Trap Hack Attempts 2 | . . 2 . . Triggered . | . . . . . Disarmed . | . . . . . Reprogrammed 1 | . . 1 . . Reused . | . . . . . Traps Extracted . | . . . . . Installed . | . . . . . Triggered . | . . . . . Machines | -11 -10 -10 -10 -8 ---------- Run | Yrd Mat Min Sub Mat Machines Disabled 3 | . . . . 3 Max in Single Turn 2 | . . . . 2 Garrison Access 1 | . . . . 1 Machines Repaired . | . . . . . Machines Dismantled . | . . . . . Machines Sabotaged . | . . . . . Overloaded Fab Kills . | . . . . . Hacking | -11 -10 -10 -10 -8 --------- Run | Yrd Mat Min Sub Mat Machines Accessed 18 | . 9 1 . 8 Terminals 12 | . 7 . . 5 Fabricators . | . . . . . Repair Stations . | . . . . . Recycling Units 3 | . 2 . . 1 Scanalyzers 1 | . . . . 1 Garrison Access 1 | . . . . 1 Total Hacks 31 | . 16 1 . 14 Successful 12 | . 5 1 . 6 Failed 19 | . 11 . . 8 Catastrophic 3 | . 2 . . 1 Database Lockouts . | . . . . . Manual . | . . . . . Terminals 20 | . 13 . . 7 Fabricators . | . . . . . Repair Stations . | . . . . . Recycling Units 5 | . 3 . . 2 Scanalyzers 3 | . . . . 3 Garrison Access 2 | . . . . 2 Terminal Hacks 7 | . 3 1 . 3 Open Door 1 | . . 1 . . Branch Access Points 1 | . 1 . . . Emergency Access Points 1 | . 1 . . . Alert Level 1 | . 1 . . . Unreport Threat 1 | . . . . 1 Locate Traps 1 | . . . . 1 Registered Components 1 | . . . . 1 Fabricator Hacks . | . . . . . Repair Station Hacks . | . . . . . Recycling Unit Hacks 2 | . 2 . . . Retrieve Components 2 | . 2 . . . Scanalyzer 2 | . . . . 2 Retrieve Study 2 | . . . . 2 Garrison Access Hacks 1 | . . . . 1 Seal Access 1 | . . . . 1 Unauthorized Hacks . | . . . . . Terminals . | . . . . . Fabricators . | . . . . . Repair Stations . | . . . . . Recycling Units . | . . . . . Scanalyzers . | . . . . . Garrison Access . | . . . . . Data Cores Recovered . | . . . . . Used . | . . . . . Hacking Detections 14 | . 9 . . 5 Full Trace Events 1 | . . . . 1 Feedback Events . | . . . . . Feedback Blocked . | . . . . . Robot Schematics Acquired . | . . . . . Robots Built . | . . . . . Authchips . | . . . . . Time . | . . . . . Total Robot Build Rating . | . . . . . Part Schematics Acquired . | . . . . . Parts Built . | . . . . . Authchips . | . . . . . Time . | . . . . . Total Part Build Rating . | . . . . . Part Studies Acquired 1 | . . . . 1 Parts Repaired . | . . . . . Time . | . . . . . Parts Recycled . | . . . . . Recycled Matter . | . . . . . Retrieved Matter . | . . . . . Retrieved Components 6 | . 6 . . . Parts Scanalyzed . | . . . . . Part Schematics Acquired . | . . . . . Parts Damaged . | . . . . . Bothacking | -11 -10 -10 -10 -8 ------------ Run | Yrd Mat Min Sub Mat Used RIF Installer . | . . . . . Robots Hacked . | . . . . . Non-combat . | . . . . . Combat . | . . . . . Robot Hacks Applied . | . . . . . Relay Couplers Released . | . . . . . Fabnet Peak Effective % . | . . . . . Robots Rewired . | . . . . . Allies Hacked . | . . . . . Hacks Repelled . | . . . . . Allies | -11 -10 -10 -10 -8 -------- Run | Yrd Mat Min Sub Mat Total Allies . | . . . . . Largest Group . | . . . . . Highest-Rated Group . | . . . . . Highest-Rated Ally . | . . . . . Total Orders . | . . . . . Ally Attacks . | . . . . . Total Damage . | . . . . . Kills . | . . . . . Allies Corrupted . | . . . . . Allies Melted . | . . . . . Intel | -11 -10 -10 -10 -8 ------- Run | Yrd Mat Min Sub Mat Active Infowar (turns) 1559 | 6 1332 179 42 . Seismic 1559 | 6 1332 179 42 . Robot Analysis Total . | . . . . . Derelict Logs Recovered 1 | . . . 1 . Drone Launches . | . . . . . Drone Recoveries . | . . . . . Exploration | -11 -10 -10 -10 -8 ------------- Run | Yrd Mat Min Sub Mat Turns Passed 5751 | 130 1332 179 373 3737 Spaces Moved 2441 | 60 709 65 124 1483 Core 31 | 29 . . . 2 Treads 1384 | 31 423 . 96 834 Legs . | . . . . . Wheels 831 | . 286 65 28 452 Hover 195 | . . . . 195 Flight . | . . . . . Fastest Speed 50 | 50 135 135 135 130 Average Speed 185 | 143 162 135 273 192 Slowest Speed 1550 | 250 320 135 312 1550 Overloaded Moves . | . . . . . Propulsion Burnouts . | . . . . . Robots Hopped . | . . . . . Potential Cave-ins . | . . . . . Cave-ins Triggered . | . . . . . Exploration Rate (%) 44 | 4 99 15 10 95 Regions Visited 4 Branch Regions 2 Pre-discovered Areas 1 | . . 1 . . Known Exits Taken 1 | . 1 . . . Unknown Exits Taken 3 | 1 . 1 1 . Scrap Searched . | . . . . . Spaces Dug . | . . . . . Terrain Destroyed 134 | . . . 17 117 Melee . | . . . . . Projectile . | . . . . . AOE 134 | . . . 17 117 Terrain Rammed . | . . . . . Walls Destroyed . | . . . . . Machines Disabled . | . . . . . Actions | -11 -10 -10 -10 -8 --------- Run | Yrd Mat Min Sub Mat Total 3103 | 81 792 155 141 1934 Wait 180 | . 14 82 4 80 Move 2437 | 59 708 64 123 1483 Hop . | . . . . . Pick Up 59 | 5 10 4 . 40 Fast Attach 17 | 6 1 . . 10 Attach 40 | 1 3 1 3 32 Detach 3 | . 2 . . 1 Swap 19 | . 3 2 1 13 Drop 29 | . 1 . 1 27 Fire 287 | 10 46 . 9 222 Melee 19 | . . . . 19 Ram 5 | . . . . 5 Kick . | . . . . . Crush 6 | . 4 . . 2 Escape Stasis . | . . . . . Rewire . | . . . . . Trap 2 | . . 2 . . Miscellaneous . | . . . . . Route ------- -11/Scrapyard -10/Materials (discovered 6 exits: [*Mat x3] / *Min x2 / [*Sub]) -10/Mines -10/Subcaves -8/Materials (discovered 3 exits: [*Fac x3]) History --------- Turn | Location | Event 4 | -11/Scrapyard | Discovered new exit (range 15) 131 | -11/Scrapyard | Entered Materials 310 | -10/Materials | Build established: Mutant 328 | -10/Materials | Discovered new exit (range 15) 338 | -10/Materials | Identified exit to Mines 956 | -10/Materials | Discovered new exit (range 14) 1080 | -10/Materials | Discovered new exit (range 5) 1151 | -10/Materials | Core integrity fell below 50% 1176 | -10/Materials | Discovered new exit (range 4) 1463 | -10/Materials | Entered Mines 1464 | -10/Mines | Learned location of Storage (-9) 1472 | -10/Mines | Met a Derelict bent on vengeance 1502 | -10/Mines | Met a Derelict who couldn't figure out how to use a Trap Extractor 1635 | -10/Mines | Discovered new exit (range 6) 1642 | -10/Mines | Entered Subcaves 1845 | -10/Subcaves | Learned Materials emergency access door positions 1975 | -10/Subcaves | Discovered new exit (range 8) 2015 | -10/Subcaves | Entered Materials 2015 | -8/Materials | Evolved 4 slots: Propulsion x4 3041 | -8/Materials | Build established: Scavenger-Mutant 3392 | -8/Materials | Garrison activated, responded to threat 3428 | -8/Materials | Core integrity fell below 50% 3892 | -8/Materials | Discovered new exit (range 15) 3933 | -8/Materials | Build established: Mutant 4518 | -8/Materials | Lost 4 parts (3n1u) 4668 | -8/Materials | Discovered new exit (range 7) 4886 | -8/Materials | System corruption reached 10% 4924 | -8/Materials | Core integrity fell below 20% 4925 | -8/Materials | Lost 4 parts (1p2n1w) 5576 | -8/Materials | Lost 3 parts (1n1u1w) 5685 | -8/Materials | Sterilization system engaged 5685 | -8/Materials | Non-combat units ordered to evacuate 5691 | -8/Materials | Discovered new exit (range 15) 5698 | -8/Materials | Destroyed 7 combat bots 5752 | -8/Materials | Destroyed by H-61 Shepherd with Heavy Assault Cannon Last Messages --------------- 05717_ The unstable cave ceiling collapses. 05719_ Missile Launcher+ destroyed. 05725_ The unstable cave ceiling collapses. 05728_ K-01 Serf exits level. 05729_ System corrupted: Component data lost. 05729_ The unstable cave ceiling collapses. 05729_ Imp. Grenade Launcher destroyed. 05729_ Imp. Heat Sink destroyed. 05733_ Acquired 13 matter. 05734_ The unstable cave ceiling collapses. 05734_ Slug penetrates Earth. 05739_ The unstable cave ceiling collapses. 05741_ U-05 Engineer exits level. 05744_ System corrupted: Energy discharge (-39). 05746_ Lgt. Treads destroyed. 05746_ Critical hit (Blast). 05746_ Knocked back. 05747_ Acquired 8 matter. 05750_ The unstable cave ceiling collapses. 05751_ System corrupted: Lgt. Assault Rifle jammed. Map ----- +----------------------------------------------------+ | #????# """ # [= # #??? | | ## #????? """ # """ ! += #??? | | # #??????######### "G # """" #??? | | # #??????????????## """ # """ #??? | | #???????????????# # """" #??? | | # ##?????????????"" # ! #??? | | #+### #?????????????"Y ##########??? | | #????????????#"" #???????????? | | T #????????????### """ #???????????? | | #??????????????# """ #???????????? | | %## #??????????????# """ !!#???????????? | | ########??????????????# ! #???????????? | | #?????????????????????# #???????????? | | #############?????????# #???????????? | | ## + #??????########### ^^###?????????? | | ##! # #??????# ! """ # ##????????? | | ## # #??????# "T" #????????? | | ## "# #??????# = # # ????????? | | ## T# #????### =% ##???????? | | ## "# #???## ; # =< #???????? | | ## ####+###??## # % k=% H #???????? | | ####+## #??# # % o # #???????? | | ##### # = #???????? | | % % ] !! #???????? | | ##### # # !! ! #???????? | | ########## #???# #% @ # !! #???????? | | ?????????#######???## ## #???????? | | ???????????????????### ### ###########???????? | | | | | | | | | | | | | | | | | | | | | | | | | | | | | | | | | | | | | | | | | | | | | +----------------------------------------------------+ Best States ------------- Heat Dissipation 45 Energy Generation 16 Energy Capacity 290 Matter Stores 300 Matter Capacity 300 Sight Range 16 Terrain Scan Density 10 Armor Coverage 225 Core Shielding 20 Weapon Shielding 66 Evasion (%) 50 Recoil Reduction 6 Item Schematics ----------------- None Robot Schematics ------------------ None Fabricated ------------ Nothing Repaired ---------- Nothing Studied --------- Missile Launcher | -8/Materials | Hacked Alien Tech Used ----------------- None Achievements -------------- Hehehe Challenges ------------ None Game ------ Seed HoverCorruptionFilter Manual? 0 Play Time 00:30:31 Cumulative 40.8 hours Start 2026.06.18 @ 18:42:04 End 2026.06.18 @ 19:09:51 Sessions 1 Manual Loads 0 Difficulty Rogue Special Mode None Game No. 75 Rogue 75 Adventurer 0 Explorer 0 Win Type - Total 0 Types 0/0/0/0/0/0/0/0/0/0 Lore% 22 Gallery% 22 Achievement% 20 Wizard Run 0 Options --------- Layout 0 ASCII 0 Keyboard 0 Movement Mouse Keybinds 0 Fullscreen 2 Font 24/Smallcaps Map View 76x50 Zoom Use 0% Tactical HUD 1 Map Filters NONE Filters NONE Steam 1 RUN: cdf144ea-4920-40cc-bf34-56626d46b898